bitfinex-derivatives/quotes_BNBF0:USTF0_20250523
["timestamp","ask_amount","ask_price","bid_price","bid_amount"]
[1748023431746,1.06991805,668.42,667.72,1.11210639]
[1748023432046,1.06991805,668.41,667.72,1.11210639]
[1748023432242,1.06991805,668.4,667.72,1.11210639]
[1748023432446,0.29920859,668.43,667.72,1.11210639]
[1748023432641,1.06995004,668.42,667.72,1.11210639]
[1748023432940,1.06995004,668.41,667.72,1.11210639]
[1748023433144,0.29920859,668.43,666.94,5.19278113]
[1748023433145,1.07005356,668.4,667.69,1.11210639]
[1748023433344,0.29920859,668.43,667.69,1.11210639]
[1748023433546,1.07000596,668.42,667.69,1.11210639]
[1748023433746,1.07000596,668.41,667.69,1.11210639]
[1748023433947,1.07000596,668.4,667.69,1.11210639]
[1748023434142,0.29920859,668.43,667.69,1.11210639]
[1748023434347,1.07006601,668.42,667.69,1.11210639]
[1748023434543,1.07006601,668.41,667.69,1.11210639]
[1748023434747,1.07006601,668.4,667.69,1.11210639]
[1748023434947,0.29920859,668.43,667.69,1.11210639]
[1748023435145,1.07029104,668.42,667.69,1.11210639]
[1748023435351,1.07029104,668.41,667.69,1.11210639]
[1748023435549,1.07029104,668.4,667.69,1.11210639]
[1748023435747,0.29920859,668.43,667.69,1.11210639]
[1748023435954,1.07049233,668.42,667.7,1.11210639]
[1748023436150,1.07049233,668.41,667.7,1.11210639]
[1748023436348,1.07049233,668.4,667.7,1.11210639]
[1748023437153,1.07073559,668.39,667.7,1.11210639]
[1748023437454,1.682,668.41,667.7,1.11210639]
[1748023437646,1.07069571,668.4,667.7,1.11210639]
[1748023437847,1.07069571,668.39,667.7,1.11210639]
[1748023438051,1.682,668.41,667.7,1.11210639]
[1748023438248,1.07079749,668.4,667.7,1.11210639]
[1748023438447,1.07079749,668.39,667.7,1.11210639]
[1748023438651,1.07079749,668.38,667.7,1.11210639]
[1748023438847,0.29923097,668.38,667.7,1.11210639]
[1748023439050,1.07069769,668.37,667.7,1.11210639]
[1748023439247,1.54248985,668.36,667.7,1.11210639]
[1748023439451,1.07069769,668.35,667.7,1.11210639]
[1748023439651,1.07069769,668.34,667.7,1.11210639]
[1748023439949,1.36995105,668.33,667.7,1.11210639]
[1748023440148,1.36995553,668.32,667.7,1.11210639]
[1748023440350,1.36996,668.31,667.7,1.11210639]
[1748023440551,0.29926679,668.3,667.64,1.11210639]
[1748023441955,1.07068405,668.29,667.64,1.11210639]
[1748023442156,0.29927575,668.28,667.64,1.11210639]
[1748023442658,1.0705296,668.27,667.64,1.11210639]
[1748023442859,1.0705296,668.26,667.64,1.11210639]
[1748023443152,1.0705296,668.25,667.64,1.11210639]
[1748023443357,1.0705296,668.24,667.69,1.11210639]
[1748023443555,1.07031418,668.23,667.69,1.11210639]
[1748023443857,0.29927575,668.28,667.69,1.11210639]
[1748023444058,1.07019632,668.27,667.69,1.11210639]
[1748023444356,1.07019632,668.26,667.69,1.11210639]
[1748023444556,1.07019632,668.25,667.69,1.11210639]
[1748023444756,1.07019632,668.24,667.69,1.11210639]
[1748023445056,0.29927575,668.28,667.69,1.11210639]
[1748023445256,1.06996095,668.27,667.69,1.11210639]
[1748023445456,1.06998427,668.26,667.69,1.11210639]
[1748023445650,1.06998427,668.25,667.69,1.11210639]
[1748023445851,0.29927575,668.28,667.69,1.11210639]
[1748023446057,1.06977497,668.27,667.69,1.11210639]
[1748023446258,1.06977497,668.26,667.69,1.11210639]
[1748023446455,1.54109789,668.25,667.69,1.11210639]
[1748023446650,1.84039155,668.24,667.69,1.11210639]
[1748023446850,1.84039603,668.23,667.69,1.11210639]
[1748023447054,1.54085334,668.22,667.69,1.11210639]
[1748023447358,1.54085334,668.21,667.69,1.11210639]
[1748023447554,1.84016492,668.2,667.69,1.11210639]
[1748023447750,1.54085334,668.19,667.69,1.11210639]
[1748023447957,1.84017388,668.18,667.69,1.11210639]
[1748023448252,1.54085334,668.17,667.69,1.11210639]
[1748023448559,1.84018284,668.16,667.43,1.11210639]
[1748023448758,1.84018732,668.15,667.43,1.11210639]
[1748023448954,1.11705018,668.23,667.43,1.11210639]
[1748023448955,1.8401918,668.14,667.43,1.11210639]
[1748023449158,1.83967926,668.13,667.43,1.11210639]
[1748023449358,1.83968374,668.12,667.43,1.11210639]
[1748023449558,1.54033632,668.11,667.43,1.11210639]
[1748023449859,1.8396927,668.1,667.43,1.11210639]
[1748023450060,1.83969718,668.09,667.43,1.11210639]
[1748023450252,1.83946576,668.08,667.43,1.11210639]
[1748023450456,1.36914479,668.07,667.43,1.11210639]
[1748023450658,1.36914927,668.06,667.43,1.11210639]
[1748023450860,1.36915375,668.05,667.43,1.11210639]
[1748023451157,0.29938327,668.04,667.35,1.11210639]
[1748023452261,1.416,668.03,667.35,1.11210639]
[1748023452465,1.71538775,668.03,667.35,1.11210639]
[1748023453861,1.71538775,668.03,666.38,3.70912938]
[1748023453862,1.71538775,668.03,667.34,1.11210639]
[1748023455064,1.505,668.02,667.34,1.11210639]
[1748023456465,1.505,668.02,667.3,1.11210639]
[1748023459168,1.505,668.02,667.12,1.47924175]
[1748023459169,1.505,668.02,667.36,1.11210639]
[1748023461670,1.505,668.02,667.4,1.11210639]
[1748023464172,1.505,668.02,667.41,1.11210639]
[1748023469077,1.505,668.02,667.45,1.11210639]
[1748023471380,1.168,668.01,667.45,1.11210639]
[1748023471580,1.168,668.01,667.47,1.11210639]
[1748023477883,1.168,668.01,667.35,1.11210639]
[1748023480081,1.168,668.01,667.34,1.11210639]
[1748023482685,1.168,668.01,667.35,1.11210639]
[1748023487487,1.168,668.01,667.4,1.11210639]
[1748023490490,1.168,668.01,667.44,1.11210639]
[1748023492392,1.168,668.01,667.45,1.11210639]
[1748023494890,1.505,668.02,667.45,1.11210639]
[1748023495387,1.505,668.02,667.5,1.11210639]
[1748023496089,0.29938775,668.03,667.5,1.11210639]
[1748023497196,0.29938775,668.03,667.52,1.11210639]
[1748023499695,0.29938775,668.03,667.62,1.11210639]
[1748023501496,0.29938775,668.03,667.59,1.11210639]
[1748023503498,0.29938775,668.03,667.6,1.11210639]
[1748023505599,0.29938775,668.03,667.62,1.11210639]
[1748023506900,0.29938775,668.03,667.46,1.47924175]
[1748023507202,0.29938775,668.03,666.14,0.47431956]
[1748023507395,0.29938775,668.03,666.16,0.30022817]
[1748023509400,0.29938775,668.03,667.61,1.12009564]
[1748023511498,0.29938775,668.03,667.71,1.12009564]
[1748023513605,0.29938775,668.03,667.72,1.12009564]
[1748023515906,1.42,668.29,667.72,1.12009564]
[1748023516201,1.11286464,668.52,667.84,1.12009564]
[1748023516505,1.37085676,668.51,667.84,1.12009564]
[1748023516802,1.84198184,668.5,667.84,1.12009564]
[1748023517004,1.84198631,668.49,667.84,1.12009564]
[1748023517204,1.84199079,668.48,667.84,1.12009564]
[1748023517505,1.37087466,668.47,667.84,1.12009564]
[1748023517701,1.07117121,668.46,667.84,1.12009564]
[1748023518004,0.29919068,668.47,667.84,1.12009564]
[1748023518301,1.187,668.46,667.84,1.12009564]
[1748023519505,1.187,668.46,666.7,0.47646291]
[1748023519506,1.187,668.46,667.99,1.12009564]
[1748023521709,1.187,668.46,667.97,1.12009564]
[1748023523808,1.187,668.46,667.72,2.24019128]
[1748023523809,1.187,668.46,667.91,1.12009564]
[1748023526813,1.187,668.46,667.87,1.12009564]
[1748023529010,1.187,668.46,667.86,1.12009564]
[1748023533420,1.187,668.46,667.58,2.24019128]
[1748023533718,1.187,668.46,666.24,0.47646291]
[1748023534017,1.187,668.46,666.35,0.30014256]
[1748023534219,1.187,668.46,666.44,0.47646291]
[1748023534417,1.187,668.46,666.54,0.30005701]
[1748023535015,1.187,668.46,667.9,1.11197656]
[1748023539422,1.187,668.46,667.74,1.48263541]
[1748023539731,1.187,668.46,666.88,5.18922395]
[1748023540318,1.187,668.46,667.88,1.11050847]
[1748023543224,1.187,668.46,667.87,1.11050847]
[1748023546428,1.187,668.46,667.98,1.11050847]
[1748023548625,1.187,668.46,668.09,1.11050847]
[1748023550835,1.187,668.46,668.13,1.11050847]
[1748023552935,1.187,668.46,668.14,1.11050847]
[1748023555438,1.187,668.46,668.12,1.11050847]
[1748023557339,1.331,668.56,668.12,1.11050847]
[1748023558139,0.26024723,669.31,668.12,1.11050847]
[1748023558339,0.29883305,669.27,668.12,1.11050847]
[1748023558539,1.52820467,669.26,668.12,1.11050847]
[1748023558741,0.29884645,669.24,668.12,1.11050847]
[1748023558942,1.52820467,669.23,668.12,1.11050847]
[1748023559141,0.29885984,669.21,668.12,1.11050847]
[1748023559341,1.52822553,669.2,668.12,1.11050847]
[1748023559536,1.36048379,669.19,668.12,1.11050847]
[1748023559740,1.36048825,669.18,668.12,1.11050847]
[1748023559940,0.29888218,669.16,668.12,1.11050847]
[1748023560136,1.06161501,669.15,668.12,1.11050847]
[1748023560340,0.29889111,669.14,668.12,1.11050847]
[1748023560540,1.06161501,669.13,668.12,1.11050847]
[1748023560740,0.29890451,669.11,668.12,1.11050847]
[1748023560938,1.06161501,669.1,668.12,1.11050847]
[1748023561142,0.29891344,669.09,668.12,1.11050847]
[1748023561342,1.06161501,669.08,668.12,1.11050847]
[1748023561539,1.36053739,669.07,668.12,1.11050847]
[1748023561743,1.36054186,669.06,668.12,1.11050847]
[1748023562047,1.535,669.2,666.63,5.18237289]
[1748023562048,3.00854633,669.05,668.06,1.11050847]
[1748023562244,0.29893578,669.04,668.06,1.11050847]
[1748023564548,0.29893578,669.04,668.08,1.11050847]
[1748023565842,1.06254955,669.03,668.08,1.11050847]
[1748023566046,1.648,669.05,668.08,1.11050847]
[1748023566047,0.29894472,669.02,668.08,1.11050847]
[1748023567346,0.29894472,669.02,668.1,1.11050847]
[1748023570147,0.29894472,669.02,668.13,1.11050847]
[1748023570549,1.06444154,669.01,668.13,1.11050847]
[1748023570750,0.29895366,669.0,668.13,1.11050847]
[1748023571650,1.06488669,668.99,668.13,1.11050847]
[1748023571950,0.29896706,668.97,668.13,1.11050847]
[1748023572152,1.53285947,668.96,668.13,1.11050847]
[1748023572450,1.83183547,668.95,667.88,1.11050847]
[1748023572648,1.83183994,668.94,667.88,1.11050847]
[1748023572851,1.83184441,668.93,667.88,1.11050847]
[1748023573046,1.83279666,668.92,667.88,1.11050847]
[1748023573251,1.83280113,668.91,667.88,1.11050847]
[1748023573453,1.8328056,668.9,667.88,1.11050847]
[1748023573652,1.83281007,668.89,667.88,1.11050847]
[1748023573849,1.83281454,668.88,667.88,1.11050847]
[1748023574153,1.83281901,668.87,667.88,1.11050847]
[1748023574354,1.83282348,668.86,667.88,1.11050847]
[1748023574654,1.83335469,668.85,667.88,1.11050847]
[1748023574853,0.29902517,668.84,667.88,1.11050847]
[1748023575047,1.06664671,668.83,667.92,1.11050847]
[1748023575248,1.36568082,668.82,667.92,1.11050847]
[1748023575448,1.3656853,668.81,667.92,1.11050847]
[1748023575754,1.36568977,668.8,667.92,1.11050847]
[1748023576049,1.36569424,668.79,667.92,1.11050847]
[1748023576253,0.299052,668.78,667.92,1.11050847]
[1748023576450,0.299052,668.78,667.94,1.11050847]
[1748023578058,0.299052,668.78,668.08,1.11050847]
[1748023580254,0.299052,668.78,668.1,1.11050847]
[1748023582859,1.376,668.77,668.1,1.11050847]
[1748023583057,1.376,668.77,668.11,1.11050847]
[1748023583259,1.67505647,668.77,668.11,1.11050847]
[1748023586060,1.67505647,668.77,668.13,1.11050847]
[1748023587360,1.67505647,668.77,667.84,2.22101695]
[1748023587555,1.67505647,668.77,666.75,0.47272519]
[1748023587760,1.67505647,668.77,666.85,0.29991752]
[1748023590767,1.67505647,668.77,668.15,1.11473516]
[1748023593569,1.67505647,668.77,668.23,1.11473516]
[1748023595972,1.67505647,668.77,668.22,1.11473516]
[1748023597472,0.29906094,668.76,668.22,1.11473516]
[1748023598170,0.29906094,668.76,668.17,1.11473516]
[1748023600175,1.0700697,668.75,668.17,1.11473516]
[1748023600376,1.36921549,668.74,668.15,1.11473516]
[1748023600576,0.29907436,668.73,668.15,1.11473516]
[1748023602176,1.0698189,668.72,668.15,1.11473516]
[1748023602477,3.2299022,668.71,668.15,1.11473516]
[1748023602776,1.83902501,668.7,668.15,1.11473516]
[1748023602976,1.0698189,668.69,668.15,1.11473516]
[1748023603176,1.0698189,668.68,668.15,1.11473516]
[1748023603377,1.0698189,668.67,668.15,1.11473516]
[1748023603578,1.0698189,668.66,668.03,1.11473516]
[1748023603773,1.0698189,668.65,668.03,1.11473516]
[1748023603974,0.29908778,668.7,668.03,1.11473516]
[1748023604172,1.0696047,668.69,668.03,1.11473516]
[1748023604371,1.0696047,668.68,668.03,1.11473516]
[1748023604573,1.0696047,668.67,668.03,1.11473516]
[1748023604878,1.0696047,668.66,668.03,1.11473516]
[1748023605079,0.29908778,668.7,668.03,1.11473516]
[1748023605374,1.06916253,668.69,668.03,1.11473516]
[1748023605573,1.06907802,668.68,668.03,1.11473516]
[1748023605772,1.06907802,668.67,667.99,1.11473516]
[1748023605974,0.29908778,668.7,667.99,1.11473516]
[1748023606177,1.06907144,668.69,667.99,1.11473516]
[1748023606375,1.06907144,668.68,667.99,1.11473516]
[1748023606572,0.29908778,668.7,667.99,1.11473516]
[1748023606778,1.068976,668.69,667.99,1.11473516]
[1748023607078,1.068976,668.68,667.99,1.11473516]
[1748023607279,0.29908778,668.7,667.99,1.11473516]
[1748023607479,1.06896854,668.69,667.99,1.11473516]
[1748023607778,1.06896854,668.68,667.99,1.11473516]
[1748023607979,1.06896854,668.67,667.99,1.11473516]
[1748023608278,0.29908778,668.7,667.99,1.11473516]
[1748023608478,0.29908778,668.7,667.81,1.48631354]
[1748023608479,1.06885797,668.69,667.97,1.11473516]
[1748023608778,1.06885797,668.68,667.97,1.11473516]
[1748023608977,1.06885797,668.67,667.97,1.11473516]
[1748023609178,0.29908778,668.7,667.97,1.11473516]
[1748023609380,1.0687445,668.69,667.97,1.11473516]
[1748023609574,1.0687445,668.68,667.97,1.11473516]
[1748023610079,1.407,668.67,667.97,1.11473516]
[1748023612781,1.06881747,668.66,667.97,1.11473516]
[1748023612981,1.407,668.67,667.98,1.11473516]
[1748023613377,1.06880953,668.66,667.98,1.11473516]
[1748023613581,1.407,668.67,667.98,1.11473516]
[1748023613781,1.06890563,668.66,667.98,1.11473516]
[1748023613978,1.407,668.67,667.98,1.11473516]
[1748023614178,1.06890012,668.66,667.98,1.11473516]
[1748023614482,1.407,668.67,667.98,1.11473516]
[1748023614781,1.0689891,668.66,667.98,1.11473516]
[1748023615583,1.0689891,668.66,668.03,1.11473516]
[1748023617883,1.0689891,668.66,668.05,1.11473516]
[1748023618380,1.06881628,668.65,668.05,1.11473516]
[1748023618583,1.06881628,668.64,668.05,1.11473516]
[1748023618880,1.06881628,668.63,668.05,1.11473516]
[1748023619082,1.407,668.67,668.05,1.11473516]
[1748023619275,1.06895713,668.66,668.05,1.11473516]
[1748023619475,1.06894187,668.65,668.05,1.11473516]
[1748023619780,1.06894187,668.64,668.05,1.11473516]
[1748023619981,1.06894187,668.63,668.05,1.11473516]
[1748023620181,1.407,668.67,668.05,1.11473516]
[1748023620383,1.06910447,668.66,668.06,1.11473516]
[1748023620580,1.06910447,668.65,668.06,1.11473516]
[1748023620780,1.06910447,668.64,668.06,1.11473516]
[1748023620983,1.06910447,668.63,668.06,1.11473516]
[1748023621184,1.407,668.67,668.06,1.11473516]
[1748023621483,1.06905709,668.66,668.06,1.11473516]
[1748023621681,1.06905709,668.65,668.06,1.11473516]
[1748023621882,1.06905709,668.64,668.06,1.11473516]
[1748023622082,1.407,668.67,668.06,1.11473516]
[1748023622279,1.06913482,668.66,668.06,1.11473516]
[1748023622482,1.06913482,668.65,668.06,1.11473516]
[1748023622685,1.06913482,668.64,668.06,1.11473516]
[1748023622882,1.06913482,668.63,668.1,1.11473516]
[1748023623184,1.06919084,668.62,668.1,1.11473516]
[1748023623385,1.06919084,668.61,668.1,1.11473516]
[1748023623584,1.06919084,668.6,668.1,1.11473516]
[1748023623776,1.407,668.67,668.1,1.11473516]
[1748023623980,1.83844084,668.66,668.1,1.11473516]
[1748023624279,1.53933517,668.65,668.1,1.11473516]
[1748023624484,1.83844979,668.64,668.1,1.11473516]
[1748023624681,1.83845426,668.63,668.1,1.11473516]
[1748023624884,1.83845873,668.62,668.1,1.11473516]
[1748023625081,1.83846321,668.61,668.1,1.11473516]
[1748023625282,1.06922088,668.6,668.1,1.11473516]
[1748023625483,1.06922088,668.59,668.02,1.11473516]
[1748023625691,1.06922088,668.58,668.02,1.11473516]
[1748023625889,1.06922088,668.57,668.02,1.11473516]
[1748023626094,1.06924129,668.56,668.02,1.11473516]
[1748023626297,1.06924129,668.55,668.02,1.11473516]
[1748023626491,1.36840065,668.54,668.02,1.11473516]
[1748023626687,1.36840512,668.53,668.02,1.11473516]
[1748023626887,1.06909012,668.52,668.02,1.11473516]
[1748023627092,1.06909012,668.51,668.02,1.11473516]
[1748023627291,1.06913469,668.5,668.02,1.11473516]
[1748023627492,1.06890768,668.49,668.02,1.11473516]
[1748023627694,0.29918621,668.48,668.02,1.11473516]
[1748023628295,0.29918621,668.48,667.94,1.11473516]
[1748023630690,1.06869698,668.47,667.94,1.11473516]
[1748023630894,1.06867953,668.46,667.92,1.11473516]
[1748023631192,1.83766028,668.45,667.92,1.11473516]
[1748023631397,1.36788364,668.44,667.92,1.11473516]
[1748023631597,1.06867953,668.43,667.92,1.11473516]
[1748023631793,1.36789259,668.42,667.92,1.11473516]
[1748023631993,1.36789707,668.41,667.92,1.11473516]
[1748023632194,1.06839999,668.4,667.92,1.11473516]
[1748023632391,1.36762648,668.39,667.92,1.11473516]
[1748023632595,2.09022649,668.39,667.92,1.11473516]
[1748023632798,1.36726747,668.38,667.92,1.11473516]
[1748023633000,1.0680365,668.37,667.92,1.11473516]
[1748023633299,1.0680365,668.36,667.92,1.11473516]
[1748023633499,0.29923097,668.38,667.92,1.11473516]
[1748023633701,1.06750161,668.37,667.81,1.11473516]
[1748023633894,0.29923097,668.38,667.81,1.11473516]
[1748023634094,1.06750112,668.37,667.81,1.11473516]
[1748023634296,0.29923097,668.38,667.81,1.11473516]
[1748023636000,0.29923097,668.38,667.76,1.11473516]
[1748023641402,1.346,668.37,667.74,1.11473516]
[1748023641605,1.346,668.37,667.72,1.11473516]
[1748023643605,1.346,668.37,667.73,1.11473516]
[1748023646711,1.346,668.37,667.71,1.11473516]
[1748023649112,1.346,668.37,666.93,3.71578386]
[1748023649113,1.346,668.37,667.7,1.11473516]
[1748023651217,1.64523545,668.37,667.7,1.11473516]
[1748023651417,0.29923993,668.36,667.7,1.11473516]
[1748023651617,0.29923993,668.36,667.67,1.11473516]
[1748023652419,1.123,668.35,667.67,1.11473516]
[1748023652713,0.29924888,668.34,667.67,1.11473516]
[1748023653922,0.29924888,668.34,667.64,1.11473516]
[1748023659324,0.29924888,668.34,667.42,1.11473516]
[1748023662728,1.06398962,668.33,667.42,1.11473516]
[1748023662930,1.36324746,668.32,667.42,1.11473516]
[1748023663123,1.123,668.35,666.85,0.29991752]
[1748023663124,0.29926231,668.31,667.37,1.11473516]
[1748023665831,0.29926231,668.31,667.4,1.11473516]
[1748023668633,0.29926231,668.31,667.53,1.11473516]
[1748023670535,1.262,668.3,667.53,1.11473516]
[1748023670736,0.29927127,668.29,667.53,1.11473516]
[1748023670931,0.29927127,668.29,667.49,1.11473516]
[1748023675538,0.29927127,668.29,667.5,1.11473516]
[1748023677844,0.29927127,668.29,667.51,1.11473516]
[1748023680145,0.29927127,668.29,667.59,1.11473516]
[1748023681648,1.06443661,668.28,667.59,1.11473516]
[1748023681848,1.36401194,668.27,667.59,1.11473516]
[1748023682050,0.2992847,668.26,667.59,1.11473516]
[1748023682450,1.06507566,668.25,667.65,1.11473516]
[1748023682650,0.29929366,668.24,667.65,1.11473516]
[1748023684953,0.29929366,668.24,667.68,1.11473516]
[1748023685149,1.06567206,668.23,667.68,1.11473516]
[1748023685355,0.29930262,668.22,667.68,1.11473516]
[1748023685854,1.06590345,668.21,667.68,1.11473516]
[1748023686055,1.36521503,668.2,667.68,1.11473516]
[1748023686255,1.36521951,668.19,667.68,1.11473516]
[1748023686454,0.29932054,668.18,667.68,1.11473516]
[1748023686856,1.06611296,668.17,667.68,1.11473516]
[1748023687054,0.29932054,668.18,667.68,1.11473516]
[1748023687556,1.06628165,668.17,667.68,1.11473516]
[1748023687751,0.29932054,668.18,667.68,1.11473516]
[1748023688055,0.29932054,668.18,667.63,1.11473516]
[1748023688756,1.06647934,668.17,667.63,1.11473516]
[1748023688955,0.29932054,668.18,667.63,1.11473516]
[1748023689351,1.06674101,668.17,667.63,1.11473516]
[1748023689554,0.29932054,668.18,667.63,1.11473516]
[1748023689850,1.06701472,668.17,667.63,1.11473516]
[1748023690054,0.29932054,668.18,667.63,1.11473516]
[1748023690354,1.06699963,668.17,667.63,1.11473516]
[1748023690549,1.0673803,668.16,667.63,1.11473516]
[1748023690754,0.29932054,668.18,667.63,1.11473516]
[1748023690954,1.0673885,668.17,667.63,1.11473516]
[1748023691154,1.0673885,668.16,667.59,1.11473516]
[1748023691354,0.29932054,668.18,667.59,1.11473516]
[1748023691552,1.06755603,668.17,667.59,1.11473516]
[1748023691756,0.29932054,668.18,667.59,1.11473516]
[1748023692759,1.0676339,668.17,667.59,1.11473516]
[1748023693059,0.29932054,668.18,667.59,1.11473516]
[1748023694855,1.06771556,668.17,667.59,1.11473516]
[1748023695061,0.29932054,668.18,667.59,1.11473516]
[1748023695761,1.06774889,668.17,667.59,1.11473516]
[1748023695964,0.2993295,668.16,667.59,1.11473516]
[1748023696560,0.2993295,668.16,667.58,1.11473516]
[1748023699359,1.465,668.15,667.58,1.11473516]
[1748023699563,1.76433398,668.15,667.58,1.11473516]
[1748023701463,1.76433398,668.15,667.6,1.11473516]
[1748023701861,1.06778992,668.14,667.6,1.11473516]
[1748023702058,1.76433398,668.15,667.6,1.11473516]
[1748023702258,1.06780687,668.14,667.6,1.11473516]
[1748023702462,1.76433398,668.15,667.6,1.11473516]
[1748023702656,1.06788164,668.14,667.6,1.11473516]
[1748023702858,1.06787943,668.13,667.6,1.11473516]
[1748023703059,1.76433398,668.15,667.6,1.11473516]
[1748023703257,1.06786076,668.14,667.6,1.11473516]
[1748023703462,1.76433398,668.15,667.6,1.11473516]
[1748023703759,1.0679788,668.14,667.6,1.11473516]
[1748023703959,1.06794416,668.13,667.6,1.11473516]
[1748023704157,1.06794416,668.12,667.63,1.11473516]
[1748023704358,1.76433398,668.15,667.63,1.11473516]
[1748023704562,1.06802478,668.14,667.63,1.11473516]
[1748023704762,1.06802478,668.13,667.63,1.11473516]
[1748023704959,1.76433398,668.15,666.85,0.29991752]
[1748023705160,1.06802356,668.14,666.85,0.29991752]
[1748023705465,1.06815039,668.13,666.85,0.29991752]
[1748023705763,1.76433398,668.15,666.85,0.29991752]
[1748023705965,1.06815168,668.14,666.85,0.29991752]
[1748023706163,1.06815168,668.13,666.85,0.29991752]
[1748023706369,1.76433398,668.15,666.85,0.29991752]
[1748023706669,1.06827196,668.14,666.85,0.29991752]
[1748023706871,1.06827196,668.13,666.85,0.29991752]
[1748023707169,1.06827196,668.12,666.85,0.29991752]
[1748023707371,1.76433398,668.15,666.85,0.29991752]
[1748023707569,1.06842025,668.14,666.85,0.29991752]
[1748023707765,1.06842025,668.13,667.66,1.1196683]
[1748023708070,1.06842025,668.12,667.66,1.1196683]
[1748023708270,1.76433398,668.15,667.66,1.1196683]
[1748023708468,1.06841856,668.14,667.66,1.1196683]
[1748023708666,1.06841856,668.13,667.66,1.1196683]
[1748023708870,1.06841856,668.12,667.66,1.1196683]
[1748023709071,1.76433398,668.15,667.66,1.1196683]
[1748023709272,1.06856912,668.14,667.66,1.1196683]
[1748023709465,1.06856912,668.13,667.66,1.1196683]
[1748023709666,1.06856912,668.12,667.66,1.1196683]
[1748023709867,1.76433398,668.15,667.66,1.1196683]
[1748023710068,1.06877467,668.14,667.66,1.1196683]
[1748023710269,1.06877467,668.13,667.65,1.1196683]
[1748023710471,1.06877467,668.12,667.65,1.1196683]
[1748023710671,1.06877467,668.11,667.65,1.1196683]
[1748023710873,1.76433398,668.15,667.65,1.1196683]
[1748023711068,1.06900197,668.14,667.65,1.1196683]
[1748023711272,1.06900197,668.13,667.65,1.1196683]
[1748023711475,1.06900197,668.12,667.65,1.1196683]
[1748023711669,1.06900197,668.11,667.65,1.1196683]
[1748023711873,1.76433398,668.15,667.65,1.1196683]
[1748023712069,1.06897663,668.14,667.65,1.1196683]
[1748023712272,1.76433398,668.15,667.65,1.1196683]
[1748023712474,1.06897084,668.14,667.65,1.1196683]
[1748023712675,1.76433398,668.15,667.65,1.1196683]
[1748023712975,1.06913564,668.14,667.7,1.1196683]
[1748023713176,1.76433398,668.15,667.7,1.1196683]
[1748023713375,1.0691478,668.14,667.7,1.1196683]
[1748023713569,1.0691478,668.13,667.7,1.1196683]
[1748023713775,1.76433398,668.15,667.7,1.1196683]
[1748023713977,1.06927063,668.14,667.7,1.1196683]
[1748023714175,1.06927063,668.13,667.7,1.1196683]
[1748023714375,1.76433398,668.15,667.7,1.1196683]
[1748023714576,1.06936984,668.14,667.7,1.1196683]
[1748023714777,1.06936984,668.13,667.7,1.1196683]
[1748023714977,1.76433398,668.15,667.7,1.1196683]
[1748023715177,1.0693666,668.14,667.7,1.1196683]
[1748023715479,1.0693666,668.13,667.71,1.1196683]
[1748023715674,1.76433398,668.15,667.71,1.1196683]
[1748023715875,1.06955807,668.14,667.71,1.1196683]
[1748023716072,1.06955807,668.13,667.71,1.1196683]
[1748023716272,1.06955807,668.12,667.71,1.1196683]
[1748023716475,1.76433398,668.15,667.71,1.1196683]
[1748023716676,1.06971979,668.14,667.71,1.1196683]
[1748023716874,1.06971979,668.13,667.71,1.1196683]
[1748023717073,1.76433398,668.15,667.71,1.1196683]
[1748023717279,1.06974604,668.14,667.71,1.1196683]
[1748023717480,1.06974604,668.13,667.71,1.1196683]
[1748023717679,1.06974604,668.12,667.71,1.1196683]
[1748023717877,1.76433398,668.15,667.71,1.1196683]
[1748023718083,1.06976595,668.14,667.72,1.1196683]
[1748023718285,1.06976595,668.13,667.72,1.1196683]
[1748023718484,1.06976595,668.12,667.72,1.1196683]
[1748023718679,1.76433398,668.15,667.72,1.1196683]
[1748023718879,1.0699894,668.14,667.72,1.1196683]
[1748023719080,1.0699894,668.13,667.72,1.1196683]
[1748023719279,1.0699894,668.12,667.72,1.1196683]
[1748023719485,1.76433398,668.15,667.72,1.1196683]
[1748023719678,1.07009915,668.14,667.72,1.1196683]
[1748023719878,1.76433398,668.15,667.72,1.1196683]
[1748023720181,1.465,668.15,667.72,1.1196683]
[1748023721080,1.465,668.15,667.83,1.1196683]
[1748023723087,1.421,668.14,667.83,1.1196683]
[1748023723382,1.421,668.14,667.93,1.1196683]
[1748023725590,1.421,668.14,667.94,1.1196683]
[1748023728692,1.421,668.14,667.97,1.1196683]
[1748023731696,1.421,668.14,667.89,1.1196683]
[1748023734198,1.421,668.14,667.81,1.1196683]
[1748023736100,1.421,668.14,667.79,1.1196683]
[1748023739101,1.421,668.14,667.81,1.1196683]
[1748023741603,1.421,668.14,666.85,0.29991752]
[1748023741604,1.421,668.14,667.83,1.1196683]
[1748023744000,1.421,668.14,667.87,1.1196683]
[1748023746208,1.421,668.14,667.9,1.1196683]
[1748023749113,1.421,668.14,667.78,1.49289107]
[1748023749114,1.421,668.14,667.85,1.1196683]
[1748023755016,1.421,668.14,667.86,1.1196683]